[Event "*** Titled Tuesday Blitz"]
[Site "Chess.com"]
[Date "2018.08.07"]
[Round "2"]
[White "David_Klein"]
[Black "nihalsarin"]
[Result "0-1"]
[WhiteElo "2508"]
[BlackElo "2778"]
[TimeControl "180+2"]
[EndTime "13:24:16 PDT"]
[Termination "nihalsarin won by resignation"]

1. b3 {[%clk 0:03:01.9]} 1... d5 {[%clk 0:02:58.5]} 2. Bb2 {[%clk 0:03:03.2]}
2... Bf5 {[%clk 0:03:00]} 3. e3 {[%clk 0:03:04]} 3... e6 {[%clk 0:03:00.7]} 4.
f4 {[%clk 0:03:04.6]} 4... Nf6 {[%clk 0:03:01.4]} 5. Nf3 {[%clk 0:03:06]} 5...
h6 {[%clk 0:03:02.6]} 6. Nc3 {[%clk 0:03:07]} 6... Nbd7 {[%clk 0:03:03.8]} 7.
Ne2 {[%clk 0:03:07.9]} 7... Be7 {[%clk 0:03:03.4]} 8. Ng3 {[%clk 0:03:08.5]}
8... Bh7 {[%clk 0:03:04.9]} 9. Bd3 {[%clk 0:03:08.4]} 9... Bxd3 {[%clk
0:03:05.5]} 10. cxd3 {[%clk 0:03:10.3]} 10... O-O {[%clk 0:03:06.3]} 11. O-O
{[%clk 0:03:11.2]} 11... a5 {[%clk 0:03:07.5]} 12. a3 {[%clk 0:03:11.3]} 12...
Nc5 {[%clk 0:03:05.8]} 13. Ne5 {[%clk 0:03:11.7]} 13... Nfd7 {[%clk 0:03:03.7]}
14. Nxd7 {[%clk 0:03:07.6]} 14... Nxd7 {[%clk 0:03:05.6]} 15. Nh5 {[%clk
0:03:06.8]} 15... Nf6 {[%clk 0:03:04.3]} 16. f5 {[%clk 0:03:05]} 16... Nxh5
{[%clk 0:02:50.2]} 17. Qxh5 {[%clk 0:03:06.9]} 17... Bf6 {[%clk 0:02:51.9]} 18.
Bxf6 {[%clk 0:03:02.3]} 18... Qxf6 {[%clk 0:02:53.8]} 19. d4 {[%clk 0:03:02.6]}
19... e5 {[%clk 0:02:50.9]} 20. dxe5 {[%clk 0:02:52.9]} 20... Qxe5 {[%clk
0:02:52.8]} 21. Rac1 {[%clk 0:02:45.9]} 21... d4 {[%clk 0:02:53.1]} 22. exd4
{[%clk 0:02:43.4]} 22... Qxd4+ {[%clk 0:02:55]} 23. Kh1 {[%clk 0:02:44.4]} 23...
Qe5 {[%clk 0:02:46.9]} 24. d4 {[%clk 0:02:44.7]} 24... Qd5 {[%clk 0:02:27.1]}
25. Rxc7 {[%clk 0:02:41.2]} 25... Rac8 {[%clk 0:02:28.5]} 26. Rxc8 {[%clk
0:02:37.2]} 26... Rxc8 {[%clk 0:02:30.4]} 27. Qg4 {[%clk 0:02:37.8]} 27... f6
{[%clk 0:02:27.9]} 28. b4 {[%clk 0:02:10.4]} 28... axb4 {[%clk 0:02:29.8]} 29.
axb4 {[%clk 0:02:11.7]} 29... Rc4 {[%clk 0:02:29.5]} 30. Re1 {[%clk 0:02:08.3]}
30... Qd7 {[%clk 0:02:06.8]} 31. h3 {[%clk 0:01:42.7]} 31... Rxd4 {[%clk
0:02:02.6]} 32. Qh5 {[%clk 0:01:25.9]} 32... Kf8 {[%clk 0:01:53.5]} 33. Qf3
{[%clk 0:00:56.4]} 33... Rd5 {[%clk 0:01:50.2]} 34. Rf1 {[%clk 0:00:39.5]} 34...
Qb5 {[%clk 0:01:45]} 35. Rc1 {[%clk 0:00:26.3]} 35... Kg8 {[%clk 0:01:09.7]} 36.
Rc8+ {[%clk 0:00:13.9]} 36... Kh7 {[%clk 0:01:09.8]} 37. Qe4 {[%clk 0:00:07.2]}
37... Qf1+ {[%clk 0:00:47]} 38. Kh2 {[%clk 0:00:07.1]} 38... Qxf5 {[%clk
0:00:45.7]} 39. Qxf5+ {[%clk 0:00:08.2]} 39... Rxf5 {[%clk 0:00:47.6]} 40. Rc4
{[%clk 0:00:06.1]} 40... Re5 {[%clk 0:00:47.2]} 41. g4 {[%clk 0:00:07.4]} 41...
Re2+ {[%clk 0:00:43.2]} 42. Kg3 {[%clk 0:00:08.6]} 42... Rb2 {[%clk 0:00:45.1]}
43. Re4 {[%clk 0:00:08.5]} 43... Rb3+ {[%clk 0:00:45.7]} 44. Kg2 {[%clk
0:00:07.1]} 44... Kg6 {[%clk 0:00:46.1]} 45. Rf4 {[%clk 0:00:08.4]} 45... Kf7
{[%clk 0:00:41.9]} 46. Re4 {[%clk 0:00:09.2]} 46... Kg6 {[%clk 0:00:40.3]} 47.
Rf4 {[%clk 0:00:10.2]} 47... b6 {[%clk 0:00:41.9]} 48. Re4 {[%clk 0:00:11]}
48... h5 {[%clk 0:00:42.6]} 49. Rc4 {[%clk 0:00:08.5]} 49... h4 {[%clk
0:00:21.1]} 50. Rd4 {[%clk 0:00:09.6]} 50... Kh6 {[%clk 0:00:21.6]} 51. Rf4
{[%clk 0:00:09.1]} 51... Kg6 {[%clk 0:00:21.9]} 52. Rd4 {[%clk 0:00:10.6]} 52...
Rg3+ {[%clk 0:00:22.7]} 53. Kh2 {[%clk 0:00:10.8]} 53... Rb3 {[%clk 0:00:24.6]}
54. Re4 {[%clk 0:00:11.9]} 54... Rb2+ {[%clk 0:00:26]} 55. Kg1 {[%clk
0:00:12.4]} 55... Kg5 {[%clk 0:00:27.9]} 56. Rd4 {[%clk 0:00:12.8]} 56... g6
{[%clk 0:00:28.5]} 57. Re4 {[%clk 0:00:13.6]} 57... f5 {[%clk 0:00:29.6]} 58.
gxf5 {[%clk 0:00:15.5]} 58... gxf5 {[%clk 0:00:31.3]} 59. Rd4 {[%clk 0:00:17.1]}
59... f4 {[%clk 0:00:32.2]} 60. Rc4 {[%clk 0:00:17.6]} 60... Kf5 {[%clk
0:00:33.1]} 61. Rd4 {[%clk 0:00:18.8]} 61... Ke5 {[%clk 0:00:34.1]} 62. Rc4
{[%clk 0:00:20.2]} 62... b5 {[%clk 0:00:27.8]} 63. Rc5+ {[%clk 0:00:20.3]} 63...
Ke4 {[%clk 0:00:29.4]} 64. Rxb5 {[%clk 0:00:21.8]} 64... f3 {[%clk 0:00:25.7]}
65. Rh5 {[%clk 0:00:20.8]} 65... Rb1+ {[%clk 0:00:23.5]} 66. Kf2 {[%clk
0:00:21.4]} 66... Rb2+ {[%clk 0:00:25.1]} 67. Kf1 {[%clk 0:00:22.8]} 67... Ke3
{[%clk 0:00:25.8]} 68. Re5+ {[%clk 0:00:23.7]} 68... Kf4 {[%clk 0:00:27.5]} 69.
Rc5 {[%clk 0:00:24.4]} 69... Rxb4 {[%clk 0:00:26.9]} 70. Rc6 {[%clk 0:00:24.2]}
70... Rb1+ {[%clk 0:00:26.3]} 71. Kf2 {[%clk 0:00:24.9]} 71... Rb2+ {[%clk
0:00:28.2]} 72. Kf1 {[%clk 0:00:26.1]} 72... Kg3 {[%clk 0:00:29.7]} 73. Rg6+
{[%clk 0:00:26.9]} 73... Kxh3 {[%clk 0:00:30.9]} 74. Rg7 {[%clk 0:00:25.3]}
74... Kh2 {[%clk 0:00:30]} 75. Rg6 {[%clk 0:00:25.3]} 75... h3 {[%clk
0:00:30.9]} 76. Rg7 {[%clk 0:00:25.3]} 76... Rg2 {[%clk 0:00:29.6]} 77. Rh7
{[%clk 0:00:21.5]} 77... Kg3 {[%clk 0:00:30.4]} 78. Rg7+ {[%clk 0:00:22.5]}
78... Kf4 {[%clk 0:00:31.9]} 79. Rf7+ {[%clk 0:00:22.8]} 79... Ke4 {[%clk
0:00:33]} 80. Re7+ {[%clk 0:00:23.9]} 80... Kd5 {[%clk 0:00:34.4]} 81. Rf7
{[%clk 0:00:24.6]} 81... h2 {[%clk 0:00:35.1]} 82. Rh7 {[%clk 0:00:25.6]} 82...
Rg1+ {[%clk 0:00:35.9]} 83. Kf2 {[%clk 0:00:26.1]} 83... h1=Q {[%clk 0:00:37.8]}
84. Rxh1 {[%clk 0:00:27]} 84... Rxh1 {[%clk 0:00:39.7]} 85. Kxf3 {[%clk
0:00:28.8]} 85... Re1 {[%clk 0:00:40.3]} 0-1

[Event "*** Titled Tuesday Blitz"]
[Site "Chess.com"]
[Date "2018.08.07"]
[Round "2"]
[White "misha_melnichuk"]
[Black "GMKrikor"]
[Result "1/2-1/2"]
[WhiteElo "2618"]
[BlackElo "2784"]
[TimeControl "180+2"]
[EndTime "13:24:41 PDT"]
[Termination "Game drawn - insufficient material"]

1. Nf3 {[%clk 0:02:58.4]} 1... d5 {[%clk 0:03:00.1]} 2. g3 {[%clk 0:02:58.7]}
2... g6 {[%clk 0:02:59.3]} 3. Bg2 {[%clk 0:02:59.7]} 3... Bg7 {[%clk 0:03:00.7]}
4. O-O {[%clk 0:03:00.4]} 4... Nf6 {[%clk 0:02:51.3]} 5. d4 {[%clk 0:03:00.6]}
5... O-O {[%clk 0:02:51.6]} 6. c4 {[%clk 0:03:01.3]} 6... dxc4 {[%clk
0:02:49.8]} 7. Na3 {[%clk 0:02:59.6]} 7... c3 {[%clk 0:02:49.2]} 8. bxc3 {[%clk
0:03:01.5]} 8... c5 {[%clk 0:02:49.9]} 9. e3 {[%clk 0:03:01.4]} 9... Nc6 {[%clk
0:02:45.2]} 10. Rb1 {[%clk 0:02:52.2]} 10... Nd5 {[%clk 0:02:19.9]} 11. Bd2
{[%clk 0:02:37.1]} 11... Qa5 {[%clk 0:01:53.6]} 12. Qb3 {[%clk 0:02:24.2]} 12...
Nb6 {[%clk 0:01:23.6]} 13. c4 {[%clk 0:02:09.4]} 13... Qa6 {[%clk 0:01:15.7]}
14. Nb5 {[%clk 0:01:54.4]} 14... Bf5 {[%clk 0:00:48.6]} 15. Nc7 {[%clk
0:01:25.1]} 15... Qxc4 {[%clk 0:00:49.5]} 16. Nxa8 {[%clk 0:01:24.8]} 16... Bxb1
{[%clk 0:00:32.3]} 17. Nxb6 {[%clk 0:01:12.8]} 17... Qxb3 {[%clk 0:00:33.2]} 18.
axb3 {[%clk 0:01:12.3]} 18... Bd3 {[%clk 0:00:34.8]} 19. Nd7 {[%clk 0:01:09.5]}
19... Bxf1 {[%clk 0:00:35.6]} 20. Kxf1 {[%clk 0:00:53.6]} 20... Rd8 {[%clk
0:00:29.5]} 21. Nxc5 {[%clk 0:00:54.1]} 21... b6 {[%clk 0:00:28.9]} 22. Nd3
{[%clk 0:00:50.5]} 22... e6 {[%clk 0:00:28.1]} 23. Ke2 {[%clk 0:00:49.7]} 23...
Rc8 {[%clk 0:00:28.2]} 24. Kd1 {[%clk 0:00:44.7]} 24... Bf8 {[%clk 0:00:29]} 25.
Nfe5 {[%clk 0:00:43.4]} 25... Nxe5 {[%clk 0:00:23.7]} 26. Nxe5 {[%clk
0:00:45.3]} 26... a5 {[%clk 0:00:19.4]} 27. Nd7 {[%clk 0:00:38.4]} 27... Bb4
{[%clk 0:00:16.3]} 28. Nxb6 {[%clk 0:00:25]} 28... Rb8 {[%clk 0:00:17.2]} 29.
Bxb4 {[%clk 0:00:20.7]} 29... axb4 {[%clk 0:00:16.6]} 30. Na4 {[%clk 0:00:16.4]}
30... Rc8 {[%clk 0:00:16.6]} 31. Nc5 {[%clk 0:00:16.4]} 31... Rc7 {[%clk
0:00:18.2]} 32. Kd2 {[%clk 0:00:17.2]} 32... Ra7 {[%clk 0:00:19.4]} 33. Ke2
{[%clk 0:00:09.2]} 33... Ra2+ {[%clk 0:00:21.3]} 34. Kf3 {[%clk 0:00:10.4]}
34... Rc2 {[%clk 0:00:22.6]} 35. Bf1 {[%clk 0:00:09.6]} 35... Rc3 {[%clk
0:00:23.6]} 36. Bc4 {[%clk 0:00:10.6]} 36... Kf8 {[%clk 0:00:25]} 37. Nd3 {[%clk
0:00:11]} 37... Ke7 {[%clk 0:00:26.3]} 38. Nxb4 {[%clk 0:00:12.3]} 38... Kd6
{[%clk 0:00:27.7]} 39. Nd3 {[%clk 0:00:12.9]} 39... f6 {[%clk 0:00:29.2]} 40. g4
{[%clk 0:00:13.7]} 40... e5 {[%clk 0:00:30.8]} 41. dxe5+ {[%clk 0:00:12.9]}
41... fxe5 {[%clk 0:00:32.7]} 42. Ke4 {[%clk 0:00:12.5]} 42... Rc2 {[%clk
0:00:34.3]} 43. h4 {[%clk 0:00:12.4]} 43... h5 {[%clk 0:00:34.8]} 44. g5 {[%clk
0:00:11.8]} 44... Ra2 {[%clk 0:00:34.9]} 45. Nxe5 {[%clk 0:00:11.1]} 45... Rxf2
{[%clk 0:00:35.9]} 46. Nxg6 {[%clk 0:00:11.6]} 46... Rh2 {[%clk 0:00:37.3]} 47.
b4 {[%clk 0:00:09]} 47... Kc6 {[%clk 0:00:38.2]} 48. b5+ {[%clk 0:00:10]} 48...
Kc5 {[%clk 0:00:39.9]} 49. Bd3 {[%clk 0:00:11.6]} 49... Rh3 {[%clk 0:00:38.9]}
50. Kf4 {[%clk 0:00:12.6]} 50... Rh2 {[%clk 0:00:40]} 51. e4 {[%clk 0:00:12.5]}
51... Rd2 {[%clk 0:00:41.2]} 52. Bb1 {[%clk 0:00:12.2]} 52... Kd4 {[%clk
0:00:42]} 53. b6 {[%clk 0:00:12.6]} 53... Rf2+ {[%clk 0:00:43.1]} 54. Kg3 {[%clk
0:00:13.7]} 54... Rb2 {[%clk 0:00:45]} 55. Nf4 {[%clk 0:00:12]} 55... Rxb1
{[%clk 0:00:42.4]} 56. Nxh5 {[%clk 0:00:12.9]} 56... Kxe4 {[%clk 0:00:42]} 57.
Nf6+ {[%clk 0:00:13.7]} 57... Kf5 {[%clk 0:00:43.4]} 58. Nd5 {[%clk 0:00:14.1]}
58... Rb3+ {[%clk 0:00:40.2]} 59. Kf2 {[%clk 0:00:15.4]} 59... Rb5 {[%clk
0:00:41.9]} 60. Ne3+ {[%clk 0:00:15.3]} 60... Kf4 {[%clk 0:00:37.7]} 61. Nc4
{[%clk 0:00:13.6]} 61... Rb4 {[%clk 0:00:29.3]} 62. Nd6 {[%clk 0:00:08.1]} 62...
Rxb6 {[%clk 0:00:29.2]} 63. Nf7 {[%clk 0:00:09.5]} 63... Rb2+ {[%clk 0:00:30.1]}
64. Ke1 {[%clk 0:00:10.8]} 64... Rb6 {[%clk 0:00:03.5]} 65. h5 {[%clk
0:00:11.1]} 65... Kf5 {[%clk 0:00:05.2]} 66. g6 {[%clk 0:00:10.9]} 66... Kf6
{[%clk 0:00:05.9]} 67. Kf2 {[%clk 0:00:10.4]} 67... Kg7 {[%clk 0:00:05.9]} 68.
Kg3 {[%clk 0:00:11.5]} 68... Rb4 {[%clk 0:00:06.9]} 69. Ng5 {[%clk 0:00:11.6]}
69... Kh6 {[%clk 0:00:06.5]} 70. Ne6 {[%clk 0:00:12.5]} 70... Rb8 {[%clk
0:00:04.8]} 71. Kg4 {[%clk 0:00:13]} 71... Rb4+ {[%clk 0:00:06.1]} 72. Nf4
{[%clk 0:00:14.3]} 72... Ra4 {[%clk 0:00:07.5]} 73. Kf5 {[%clk 0:00:15.4]} 73...
Ra5+ {[%clk 0:00:08.6]} 74. Kf6 {[%clk 0:00:16.5]} 74... Ra6+ {[%clk 0:00:10.3]}
75. Ne6 {[%clk 0:00:17.3]} 75... Ra8 {[%clk 0:00:11.5]} 76. g7 {[%clk
0:00:18.1]} 76... Rg8 {[%clk 0:00:11.9]} 77. Kf7 {[%clk 0:00:18.9]} 77... Ra8
{[%clk 0:00:10]} 78. g8=Q {[%clk 0:00:13.9]} 78... Rxg8 {[%clk 0:00:10.9]} 79.
Kxg8 {[%clk 0:00:14.7]} 79... Kxh5 {[%clk 0:00:12.8]} 1/2-1/2

[Event "*** Titled Tuesday Blitz"]
[Site "Chess.com"]
[Date "2018.08.07"]
[Round "2"]
[White "oskariot"]
[Black "Slovak_fighter2000"]
[Result "1-0"]
[WhiteElo "2467"]
[BlackElo "2389"]
[TimeControl "180+2"]
[EndTime "13:24:53 PDT"]
[Termination "oskariot won by resignation"]

1. c4 {[%clk 0:02:57.2]} 1... e6 {[%clk 0:02:59.2]} 2. d4 {[%clk 0:02:57.1]}
2... d5 {[%clk 0:03:00.7]} 3. Nc3 {[%clk 0:02:58.6]} 3... Nf6 {[%clk 0:03:02.2]}
4. Bg5 {[%clk 0:02:59.6]} 4... Be7 {[%clk 0:03:02.7]} 5. cxd5 {[%clk 0:02:59.9]}
5... Nxd5 {[%clk 0:03:01.8]} 6. Bxe7 {[%clk 0:02:54.6]} 6... Qxe7 {[%clk
0:03:03.7]} 7. Rc1 {[%clk 0:02:51.6]} 7... O-O {[%clk 0:03:03.9]} 8. Nf3 {[%clk
0:02:48.8]} 8... Nxc3 {[%clk 0:02:59.3]} 9. Rxc3 {[%clk 0:02:50.7]} 9... c6
{[%clk 0:02:47.3]} 10. e3 {[%clk 0:02:38.1]} 10... Nd7 {[%clk 0:02:47.5]} 11.
Qc2 {[%clk 0:02:32.3]} 11... e5 {[%clk 0:02:41.4]} 12. Bd3 {[%clk 0:02:33.5]}
12... h6 {[%clk 0:02:34.6]} 13. O-O {[%clk 0:02:31.8]} 13... exd4 {[%clk
0:02:27.9]} 14. Nxd4 {[%clk 0:02:31.1]} 14... Ne5 {[%clk 0:02:27.3]} 15. Be4
{[%clk 0:02:25.2]} 15... Bg4 {[%clk 0:02:05.9]} 16. h3 {[%clk 0:02:19.1]} 16...
Bh5 {[%clk 0:02:06]} 17. Rc5 {[%clk 0:02:19.7]} 17... Bg6 {[%clk 0:02:04.3]} 18.
Bxg6 {[%clk 0:02:09.8]} 18... Nxg6 {[%clk 0:02:06.2]} 19. Nf5 {[%clk 0:02:11.1]}
19... Qf6 {[%clk 0:02:04.5]} 20. Rc1 {[%clk 0:01:45.9]} 20... Rad8 {[%clk
0:01:59.3]} 21. b4 {[%clk 0:01:44.8]} 21... Ne7 {[%clk 0:01:57.9]} 22. Nd4
{[%clk 0:01:40.1]} 22... Rd5 {[%clk 0:01:47.7]} 23. a4 {[%clk 0:01:33.2]} 23...
Rfd8 {[%clk 0:01:44.3]} 24. b5 {[%clk 0:01:32.3]} 24... cxb5 {[%clk 0:01:42.6]}
25. axb5 {[%clk 0:01:30.1]} 25... Rxc5 {[%clk 0:01:17.7]} 26. Qxc5 {[%clk
0:01:31.2]} 26... Rc8 {[%clk 0:01:10.3]} 27. Qa3 {[%clk 0:01:32.2]} 27... Rxc1+
{[%clk 0:01:10.8]} 28. Qxc1 {[%clk 0:01:33.5]} 28... Qb6 {[%clk 0:01:04.7]} 29.
Qa3 {[%clk 0:01:30.2]} 29... Ng6 {[%clk 0:00:59.5]} 30. Qc3 {[%clk 0:01:22.4]}
30... a6 {[%clk 0:00:58.5]} 31. Qc8+ {[%clk 0:00:41.6]} 31... Nf8 {[%clk
0:00:57.9]} 32. Nf5 {[%clk 0:00:36.2]} 32... Qe6 {[%clk 0:00:48.4]} 33. Qxb7
{[%clk 0:00:26.5]} 33... axb5 {[%clk 0:00:34.7]} 34. Qxb5 {[%clk 0:00:26.6]}
34... Ng6 {[%clk 0:00:28.9]} 35. Nd4 {[%clk 0:00:26.1]} 35... Qf6 {[%clk
0:00:29.1]} 36. Qb8+ {[%clk 0:00:27.1]} 36... Kh7 {[%clk 0:00:29]} 37. Qb1
{[%clk 0:00:28.5]} 37... Kg8 {[%clk 0:00:27.2]} 38. Qe4 {[%clk 0:00:29.5]} 38...
Qe5 {[%clk 0:00:27.8]} 39. Qxe5 {[%clk 0:00:30.4]} 39... Nxe5 {[%clk 0:00:29.7]}
40. g3 {[%clk 0:00:30.3]} 40... g6 {[%clk 0:00:30.5]} 41. Kg2 {[%clk 0:00:31.6]}
41... Kg7 {[%clk 0:00:31.9]} 42. f4 {[%clk 0:00:32.1]} 42... Nc4 {[%clk
0:00:31.7]} 43. Kf3 {[%clk 0:00:32.9]} 43... f5 {[%clk 0:00:30]} 44. g4 {[%clk
0:00:27.3]} 44... Kf6 {[%clk 0:00:31.2]} 45. gxf5 {[%clk 0:00:20.4]} 45... gxf5
{[%clk 0:00:33.1]} 46. Nb3 {[%clk 0:00:20.5]} 46... Nd6 {[%clk 0:00:31.9]} 47.
Nc1 {[%clk 0:00:21]} 47... Nc4 {[%clk 0:00:29]} 48. Ne2 {[%clk 0:00:21.1]} 48...
Ke6 {[%clk 0:00:29.1]} 49. Nd4+ {[%clk 0:00:21.8]} 49... Kf6 {[%clk 0:00:30.5]}
50. Kf2 {[%clk 0:00:23.4]} 50... Nd2 {[%clk 0:00:30.2]} 51. Nc2 {[%clk
0:00:23.9]} 51... Ne4+ {[%clk 0:00:31.1]} 52. Kf3 {[%clk 0:00:25.1]} 52... Nd2+
{[%clk 0:00:32.3]} 53. Ke2 {[%clk 0:00:26.3]} 53... Ne4 {[%clk 0:00:33.8]} 54.
Nd4 {[%clk 0:00:27.7]} 54... Nd6 {[%clk 0:00:28.7]} 55. Nc6 {[%clk 0:00:27.7]}
55... Ne4 {[%clk 0:00:29.8]} 56. Ne5 {[%clk 0:00:28.5]} 56... Nd6 {[%clk
0:00:29.9]} 57. Kf2 {[%clk 0:00:28.7]} 57... Ne4+ {[%clk 0:00:30.5]} 58. Kf3
{[%clk 0:00:30.3]} 58... Nd2+ {[%clk 0:00:29.3]} 59. Kg3 {[%clk 0:00:31.5]}
59... Nf1+ {[%clk 0:00:30.2]} 60. Kf2 {[%clk 0:00:25.3]} 60... Nd2 {[%clk
0:00:31.3]} 61. Nf3 {[%clk 0:00:25.5]} 61... Ne4+ {[%clk 0:00:32]} 62. Ke2
{[%clk 0:00:26.1]} 62... Ng3+ {[%clk 0:00:32.4]} 63. Kd3 {[%clk 0:00:26]} 63...
Ne4 {[%clk 0:00:33.7]} 64. Nd2 {[%clk 0:00:27]} 64... Nf2+ {[%clk 0:00:30.1]}
65. Ke2 {[%clk 0:00:27.9]} 65... Nxh3 {[%clk 0:00:20.7]} 66. Kf1 {[%clk
0:00:20.5]} 66... Ng5 {[%clk 0:00:14.4]} 67. fxg5+ {[%clk 0:00:21.3]} 67... hxg5
{[%clk 0:00:16.3]} 68. Kf2 {[%clk 0:00:12.9]} 68... Ke5 {[%clk 0:00:17.1]} 69.
Nf3+ {[%clk 0:00:13.4]} 69... Kf6 {[%clk 0:00:15.4]} 70. Ne1 {[%clk 0:00:10.4]}
70... Ke5 {[%clk 0:00:16.2]} 71. Nf3+ {[%clk 0:00:11.4]} 71... Kf6 {[%clk
0:00:17.3]} 72. Ke2 {[%clk 0:00:11.7]} 72... g4 {[%clk 0:00:16.8]} 73. Ne1
{[%clk 0:00:12.7]} 73... Ke5 {[%clk 0:00:14.4]} 74. Ng2 {[%clk 0:00:08.4]} 74...
Ke4 {[%clk 0:00:14.9]} 75. Nf4 {[%clk 0:00:09.8]} 75... g3 {[%clk 0:00:15.3]}
76. Ng2 {[%clk 0:00:10.6]} 76... Ke5 {[%clk 0:00:11.2]} 77. Kf3 {[%clk
0:00:11.8]} 77... Kf6 {[%clk 0:00:11.9]} 78. Kxg3 {[%clk 0:00:12.9]} 78... Ke5
{[%clk 0:00:13.8]} 79. Kf3 {[%clk 0:00:14.1]} 79... Kf6 {[%clk 0:00:14.9]} 80.
Kf4 {[%clk 0:00:15.5]} 80... Ke6 {[%clk 0:00:16.1]} 81. Nh4 {[%clk 0:00:16.8]}
1-0